bitfinex/quotes_ETHUSD_20241106
["timestamp","ask_amount","ask_price","bid_price","bid_amount"]
[1730903519147,3.80492,2628.2,2627.5,3.80588]
[1730903519462,3.80492,2628.2,2627.4,3.8059]
[1730903519756,3.80492,2628.2,2627.4,4.19410278]
[1730903520632,3.80503,2628.1,2627.4,4.19410278]
[1730903520819,4.35503,2628.1,2627.4,4.19410278]
[1730903521019,4.35503,2628.1,2627.4,3.8059]
[1730903521224,0.55,2628.2,2627.4,3.8059]
[1730903521409,8.61058621,2628.9,2626.6,3.0]
[1730903521410,4.20698797,2628.8,2627.3,3.80618]
[1730903521755,0.39698797,2628.8,2628.4,0.7789]
[1730903521914,3.80429,2628.7,2627.8,3.80535]
[1730903522123,3.80429,2628.7,2627.8,4.185885]
[1730903522343,7.60858,2628.7,2628.0,3.80504]
[1730903522646,3.80413,2628.8,2627.8,0.380535]
[1730903522803,7.61349,2629.2,2628.5,3.80442]
[1730903523005,3.80368,2629.1,2628.3,3.80465]
[1730903523205,7.61349,2629.2,2628.4,3.80447]
[1730903523753,7.61349,2629.2,2628.5,3.80443]
[1730903523754,3.81,2629.2,2628.5,3.80443]
[1730903523907,4.20699505,2629.7,2628.7,3.80415]
[1730903524110,0.42069951,2629.6,2628.8,3.80391]
[1730903524379,0.42069951,2629.6,2629.0,3.80361]
[1730903524584,0.42069951,2629.6,2629.2,3.80334]
[1730903524902,0.01,2630.4,2629.0,3.8037]
[1730903524903,0.01,2630.8,2629.4,3.80303]
[1730903525102,0.01,2630.6,2629.3,0.8054]
[1730903525305,3.80229,2630.0,2629.3,0.8054]
[1730903525731,3.80191,2630.3,2629.4,3.803]
[1730903525883,0.380191,2630.2,2629.4,3.803]
[1730903526082,3.80167,2630.5,2629.8,3.80254]
[1730903526283,3.80167,2630.5,2629.7,3.80268]
[1730903526504,3.80167,2630.5,2629.6,3.80274]
[1730903526505,3.80181,2630.4,2629.6,3.80274]
[1730903526686,7.61112,2630.9,2630.1,3.80204]
[1730903526906,0.761112,2630.8,2630.2,0.7732]
[1730903527107,3.80074,2631.1,2630.2,0.7732]
[1730903527281,5.321173,2631.9,2630.6,3.80138]
[1730903527282,3.80017,2631.5,2630.6,3.80138]
[1730903527479,3.80017,2631.5,2630.2,0.84923781]
[1730903527480,3.80017,2631.5,2630.8,3.8011]
[1730903527699,3.80031,2631.4,2630.6,3.80136]
[1730903528020,3.81,2631.6,2631.0,3.8008]
[1730903528228,3.79961,2631.9,2630.9,0.07601516]
[1730903528412,3.79961,2631.9,2631.2,3.80045]
[1730903528724,7.30263519,2632.0,2630.4,0.8197]
[1730903528938,0.01,2631.8,2630.0,0.8224]
[1730903529098,3.80193,2630.3,2630.0,0.8224]
[1730903529434,3.80166,2630.5,2629.7,3.80259]
[1730903529581,3.80164,2630.5,2629.8,3.80255]
[1730903529781,3.80133,2630.7,2629.9,3.80242]
[1730903529981,3.80165,2630.5,2629.9,3.80242]
[1730903530226,3.80195,2630.3,2629.6,4.62524]
[1730903530396,3.80209,2630.2,2629.6,0.8224]
[1730903530801,0.55,2630.3,2629.7,3.8027]
[1730903531112,8.038735,2630.4,2629.8,3.80256]
[1730903531113,4.236935,2630.4,2629.8,3.80256]
[1730903531316,4.236935,2630.4,2629.6,4.62512]
[1730903531631,4.35205,2630.2,2629.6,0.8224]
[1730903531784,3.80261,2629.8,2629.2,4.62882]
[1730903531986,4.35243,2629.9,2629.3,3.8032]
[1730903532388,0.55,2629.9,2629.4,3.80306]
[1730903532620,4.35242,2629.9,2629.4,3.80306]
[1730903532933,0.55,2629.9,2629.4,3.80306]
[1730903533151,0.01,2631.2,2629.5,0.07606296]
[1730903533425,3.80058,2631.2,2629.6,3.80285]
[1730903533730,3.8024,2630.0,2629.4,3.80309]
[1730903533935,3.80179,2630.4,2629.4,3.80309]
[1730903534103,3.80179,2630.4,2628.6,0.01]
[1730903534104,3.80029,2631.4,2630.6,0.7986]
[1730903534302,3.80029,2631.4,2630.8,3.80098]
[1730903534303,0.761029,2631.3,2630.8,3.80098]
[1730903534630,0.761029,2631.3,2630.8,7.602]
[1730903534839,3.8002,2631.5,2630.8,3.80098]
[1730903535017,3.81,2631.7,2630.9,3.80095]
[1730903535197,3.80034,2631.4,2630.7,3.80126]
[1730903535385,3.80016,2631.5,2630.7,3.80126]
[1730903535587,3.80016,2631.5,2630.6,0.7986]
[1730903535830,3.8008,2631.1,2630.6,0.7986]
[1730903536124,3.80071,2631.1,2630.6,0.7986]
[1730903536690,0.55,2631.2,2630.6,0.7986]
[1730903537089,3.81,2631.7,2631.0,3.80072]
[1730903537329,5.01052314,2631.9,2631.3,3.8004]
[1730903537531,1.21093314,2631.9,2631.3,3.80028]
[1730903537737,3.79904,2632.3,2631.6,3.79996]
[1730903537888,5.42169621,2632.4,2631.0,0.8189]
[1730903538091,3.79955,2631.9,2631.2,3.8004]
[1730903538425,3.79955,2631.9,2631.0,4.61964]
[1730903538627,3.79933,2632.1,2631.1,0.07600815]
[1730903538831,3.79933,2632.1,2631.3,3.80033]
[1730903538832,3.79954,2631.9,2631.3,3.80033]
[1730903539033,0.760933,2632.0,2631.4,3.80014]
[1730903539886,0.760933,2632.0,2631.6,3.79988]
[1730903540090,0.760933,2632.0,2631.5,3.80009]
[1730903540091,0.760933,2632.0,2631.4,3.80017]
[1730903540342,4.560353,2632.0,2631.4,3.80017]
[1730903540629,0.8359683,2631.9,2631.5,3.80008]
[1730903540842,3.79902,2632.3,2631.7,3.79972]
[1730903540992,3.79902,2632.3,2631.5,3.80002]
[1730903541188,3.79902,2632.3,2631.7,3.7998]
[1730903541392,3.79902,2632.3,2631.5,3.80002]
[1730903541643,0.442402,2632.2,2631.5,3.80002]
[1730903541801,3.79933,2632.1,2631.0,0.8189]
[1730903542124,3.79954,2631.9,2631.4,3.80022]
[1730903542337,3.79939,2632.0,2631.4,3.80022]
[1730903542539,0.55,2631.8,2631.1,3.8006]
[1730903542892,4.34975,2631.8,2631.2,3.80052]
[1730903543108,4.614858,2631.7,2631.1,3.8006]
[1730903543328,4.614858,2631.7,2631.1,7.6012]
[1730903543644,0.814938,2631.7,2631.3,3.80037]
[1730903543844,3.79932,2632.1,2631.1,3.8006]
[1730903543845,0.55,2632.0,2631.1,3.80061]
[1730903544044,3.79961,2631.9,2631.3,3.80029]
[1730903544261,3.79991,2631.7,2631.1,3.80061]
[1730903544455,0.434991,2631.6,2631.1,3.80061]
[1730903544620,0.434991,2631.6,2631.1,3.8006]
[1730903544807,3.79948,2632.0,2631.3,3.80037]
[1730903545007,0.55,2632.1,2631.1,3.80069]
[1730903545229,0.55,2632.1,2631.6,3.79989]
[1730903545807,3.79969,2631.8,2631.2,3.80046]
[1730903546031,0.55,2631.7,2631.0,4.61963]
[1730903546235,4.234969,2631.6,2631.0,4.61963]
[1730903546430,3.80037,2631.4,2631.0,0.8189]
[1730903546642,3.80037,2631.4,2630.7,0.0570164]
[1730903546822,3.80054,2631.2,2630.5,0.7805]
[1730903547039,0.435054,2631.1,2630.5,0.7805]
[1730903547216,4.34975,2631.8,2631.1,3.8006]
[1730903547414,4.34975,2631.8,2630.6,3.8774303]
[1730903547415,0.55,2631.8,2631.3,3.80029]
[1730903547614,7.30263519,2631.9,2631.4,3.80024]
[1730903548047,11.10219519,2631.9,2631.4,3.80024]
[1730903548449,0.625,2632.4,2631.7,3.79979]
[1730903548609,0.625,2632.4,2632.1,3.79923]
[1730903548812,0.625,2632.4,2632.3,3.79895]
[1730903549357,0.625,2632.4,2632.1,0.824]
[1730903549557,0.625,2632.4,2632.1,4.62322]
[1730903550022,0.625,2632.4,2632.1,4.62317]
[1730903550226,0.625,2632.4,2632.2,3.79909]
[1730903550413,0.625,2632.4,2632.3,3.79895]
[1730903552374,0.625,2632.4,2632.3,4.641154]
[1730903554338,0.625,2632.4,2632.3,3.79895]
[1730903554635,0.01,2634.5,2632.4,0.02]
[1730903554849,3.79675,2633.9,2633.2,3.79757]
[1730903555129,3.79675,2633.9,2633.0,3.7978]
[1730903555130,3.79703,2633.7,2633.0,3.7978]
[1730903555336,3.79703,2633.7,2633.1,3.79772]
[1730903555566,3.79703,2633.7,2632.4,0.806]
[1730903555567,0.759376,2633.7,2632.4,0.806]
[1730903555788,4.79669621,2633.6,2632.4,0.806]
[1730903555946,3.79789,2633.1,2632.4,4.60467]
[1730903556158,3.79785,2633.1,2632.6,3.7985]
[1730903556355,3.79803,2633.0,2632.4,0.806]
[1730903556689,0.55,2632.9,2632.4,0.806]
[1730903556981,3.79826,2632.8,2632.4,0.806]
[1730903557184,3.79772,2633.2,2632.2,0.07597281]
[1730903557488,3.79772,2633.2,2632.0,0.7708]
[1730903557489,3.79772,2633.2,2632.6,3.79848]
[1730903557847,0.55,2633.3,2632.6,3.79842]
[1730903558047,3.7978,2633.2,2632.6,3.79842]
[1730903558254,4.612325,2633.2,2632.6,3.79842]
[1730903558469,0.814525,2633.2,2632.7,3.79832]
[1730903558787,3.79742,2633.4,2632.8,3.79822]
[1730903558942,3.79742,2633.4,2632.7,0.89886115]
[1730903558943,7.60687,2633.8,2633.1,3.79767]
[1730903559143,3.79675,2633.9,2633.2,3.79751]
[1730903559445,3.79658,2634.0,2633.4,4.55974]
[1730903559649,4.176238,2634.0,2633.4,4.55974]
[1730903559967,4.176238,2634.0,2633.5,3.79719]
[1730903560347,4.176238,2634.0,2633.4,0.7624]
[1730903560660,3.79658,2634.0,2633.4,4.55972]
[1730903561193,4.79669621,2634.4,2632.8,3.0]
[1730903561354,0.01,2634.9,2632.3,0.02]
[1730903561355,3.79792,2633.1,2632.6,0.7624]
[1730903561556,3.79792,2633.1,2632.3,3.79892]
[1730903561769,4.177712,2633.1,2632.3,4.60327]
[1730903562084,3.79829,2632.8,2632.3,0.8044]
[1730903562392,0.55,2633.0,2632.3,0.8044]
[1730903562393,4.34796,2633.0,2632.3,0.8044]
[1730903562688,4.34796,2633.0,2631.4,3.80015]
[1730903562689,3.79874,2632.5,2631.9,3.79944]
[1730903562858,0.55,2633.0,2631.3,0.01]
[1730903563058,0.379792,2633.1,2631.3,0.01]
[1730903563059,3.79838,2632.7,2632.1,3.79913]
[1730903563257,3.79874,2632.5,2631.9,3.79945]
[1730903563473,3.79847,2632.7,2631.9,3.79945]
[1730903563647,3.79847,2632.7,2631.9,7.59891]
[1730903563849,3.7988,2632.5,2632.0,3.79937]
[1730903564063,3.7988,2632.5,2631.9,3.79953]
[1730903564787,3.79876,2632.5,2631.7,8.40387]
[1730903564968,3.79876,2632.5,2631.9,3.79944]
[1730903565164,0.55,2633.0,2632.0,0.07598158]
[1730903565389,0.55,2633.0,2631.8,3.79967]
[1730903565390,3.79884,2632.4,2631.8,3.79967]
[1730903565590,3.79921,2632.2,2631.7,0.8044]
[1730903565908,3.79921,2632.2,2631.0,0.02]
[1730903565909,3.79968,2631.8,2631.3,0.8205]
[1730903566084,3.79996,2631.6,2631.3,0.8205]
[1730903566391,3.80029,2631.4,2630.9,0.05700867]
[1730903567595,3.80042,2631.3,2630.9,0.05700867]
[1730903567958,0.379996,2631.6,2630.9,0.05700867]
[1730903568155,3.80083,2631.0,2630.9,0.05700867]
[1730903568607,3.0,2631.9,2630.9,0.05700867]
[1730903568900,0.47509796,2632.9,2631.3,4.59528]
[1730903568901,3.79926,2632.1,2631.3,4.59528]
[1730903569101,3.79926,2632.1,2631.4,3.80025]
[1730903569266,3.79941,2632.0,2631.5,0.839553]
[1730903569470,3.79953,2631.9,2631.3,4.59528]
[1730903569666,3.79926,2632.1,2631.3,4.59528]
[1730903569892,3.79901,2632.3,2631.5,3.80002]
[1730903570052,3.79893,2632.4,2631.7,3.7998]
[1730903570255,4.34899,2632.3,2631.7,3.7998]
[1730903570486,0.55,2632.3,2631.7,3.7998]
[1730903570797,0.55,2632.3,2631.7,3.79973]
[1730903571089,0.55,2632.3,2631.6,3.79996]
[1730903571254,0.55,2632.3,2631.6,4.56756087]
[1730903571455,3.79918,2632.2,2631.6,4.56756087]
[1730903571688,3.79918,2632.2,2631.6,3.79996]
[1730903571891,3.79918,2632.2,2631.5,3.8]
[1730903572050,3.79794,2633.0,2632.1,3.79915]
[1730903572256,3.79852,2632.6,2631.9,3.79945]
[1730903572455,3.79852,2632.6,2632.0,3.79933]
[1730903572901,3.79907,2632.3,2631.6,3.87582435]
[1730903573064,3.79907,2632.3,2631.7,3.79976]
[1730903573252,3.79919,2632.2,2631.6,3.79984]
[1730903574004,0.55,2632.5,2631.4,4.58796]
[1730903574206,3.79895,2632.3,2631.4,0.7878]
[1730903574353,3.80055,2631.2,2630.9,0.05700867]
[1730903574552,3.79979,2631.8,2631.0,3.80083]
[1730903574852,3.79997,2631.6,2631.1,3.80067]
[1730903575099,3.79997,2631.6,2630.9,0.05700867]
[1730903575401,3.80057,2631.2,2630.9,0.05700867]
[1730903575561,3.80027,2631.4,2630.9,0.05700867]
[1730903575900,0.55,2631.5,2630.9,0.05700867]
[1730903576103,3.79983,2631.7,2631.1,3.8006]
[1730903576255,3.79984,2631.7,2631.2,0.38006]
[1730903576455,0.55,2631.8,2631.2,0.38006]
[1730903576652,0.55,2631.8,2631.3,3.80029]
[1730903576868,0.55,2631.8,2631.2,4.18052]
[1730903577094,4.3497,2631.8,2631.3,3.80038]
[1730903577405,0.55,2631.6,2630.7,4.62417]
[1730903577604,3.80033,2631.4,2630.8,3.80103]
[1730903577814,3.80011,2631.5,2630.9,3.80089]
[1730903577964,0.55,2631.6,2630.9,3.80089]
[1730903578160,3.80014,2631.5,2630.9,3.80089]
[1730903578773,3.80018,2631.5,2630.9,0.842511]
[1730903578974,0.55,2631.7,2630.8,3.8011]
[1730903579203,3.80052,2631.3,2630.7,4.62418]
[1730903579556,3.80071,2631.1,2630.7,0.823]
[1730903579763,3.80053,2631.3,2630.7,4.62416]
[1730903579964,3.80009,2631.6,2631.1,3.80069]
[1730903580162,3.80007,2631.6,2631.1,3.80069]
[1730903580393,3.80027,2631.4,2630.9,3.8009]
[1730903580614,3.80047,2631.3,2630.7,4.62418]
[1730903580810,3.80907,2632.3,2630.7,4.62418]
[1730903580811,7.79669621,2632.4,2631.1,3.80069]
[1730903581014,7.79669621,2632.4,2630.8,0.53843202]
[1730903581015,4.96675317,2632.6,2631.8,3.79956]
[1730903581233,3.79918,2632.2,2631.6,3.79985]
[1730903581400,3.7992,2632.2,2631.6,7.59974]
[1730903581598,3.79821,2632.9,2632.1,3.79923]
[1730903581913,3.79845,2632.7,2631.9,3.79944]
[1730903582115,3.79845,2632.7,2631.8,0.7823]
[1730903582116,4.20698368,2633.3,2632.0,0.07597857]
[1730903582318,3.79874,2632.5,2632.0,3.79933]
[1730903582787,4.79669621,2633.2,2632.1,3.79915]
[1730903582788,3.79846,2632.7,2632.1,3.79915]
[1730903582991,3.79846,2632.7,2632.0,3.79931]
[1730903583230,4.178306,2632.7,2632.1,3.79924]
[1730903583438,3.79846,2632.7,2631.8,0.7823]
[1730903583732,4.20698368,2633.3,2631.8,0.7823]
[1730903583933,3.79811,2632.9,2632.5,0.8091]
[1730903584233,3.79852,2632.6,2632.5,0.8091]
[1730903584399,3.79852,2632.6,2631.9,3.79944]
[1730903584725,0.759691,2632.6,2632.0,3.79935]
[1730903584897,3.79819,2632.9,2632.4,3.79878]
[1730903585099,4.19458368,2633.3,2632.7,3.79838]
[1730903585333,0.39698368,2633.3,2633.1,3.79779]
[1730903585488,3.79706,2633.7,2632.9,3.79801]
[1730903585684,3.79564,2634.6,2633.0,4.63034]
[1730903585935,3.79564,2634.6,2633.6,3.79699]
[1730903585936,3.7963,2634.2,2633.6,3.79699]
[1730903586132,7.59262,2634.2,2633.6,3.79707]
[1730903586332,3.79599,2634.4,2633.7,0.07593405]
[1730903586631,3.79593,2634.4,2633.6,7.59398]
[1730903586846,4.5944794,2634.4,2633.8,3.79679]
[1730903587237,7.6057,2634.6,2633.1,3.47062934]
[1730903587238,3.81,2634.6,2633.4,0.01]
[1730903587392,3.79551,2634.7,2634.2,0.794]
[1730903587587,3.79576,2634.6,2634.2,0.794]
[1730903587942,3.79596,2634.4,2633.9,0.8118]
[1730903588161,3.7965,2634.0,2633.9,0.8118]
[1730903588344,0.379596,2634.4,2633.2,6.79758]
[1730903588345,3.79672,2633.9,2633.2,3.79765]
[1730903588515,3.79672,2633.9,2633.2,3.79755]
[1730903588861,3.79723,2633.5,2633.1,0.8206]
[1730903589152,0.55,2633.6,2632.8,0.8206]
[1730903589373,4.34772,2633.2,2632.5,0.8206]
[1730903589565,0.434698,2633.5,2632.9,3.79808]
[1730903589566,0.55,2633.4,2632.9,3.79808]
[1730903589717,4.34739,2633.4,2632.7,3.79828]
[1730903589914,4.34739,2633.4,2632.7,0.07595974]
[1730903590122,0.55,2633.4,2632.5,0.8206]
[1730903590328,7.59542,2633.2,2632.5,4.61915]
[1730903590524,3.79766,2633.2,2632.5,4.61915]
[1730903590723,3.7971,2633.6,2632.6,0.07596576]
[1730903590929,3.7971,2633.6,2633.1,3.79776]
[1730903591133,3.7971,2633.6,2633.1,3.87370819]
[1730903591329,0.55,2633.7,2633.1,4.72024901]
[1730903591620,3.79716,2633.6,2633.1,0.84654082]
[1730903591815,3.79716,2633.6,2633.0,4.59164]
[1730903591816,3.79739,2633.4,2633.0,0.7937]
[1730903592282,3.79686,2633.8,2633.0,0.7937]
[1730903592455,8.60148621,2635.2,2633.1,0.07594691]
[1730903592636,3.79616,2634.3,2633.7,4.60131]
[1730903592837,7.60556,2634.7,2634.1,3.79635]
[1730903593086,8.366116,2634.7,2634.1,3.79635]
[1730903593245,7.60556,2634.7,2634.2,3.7962]
[1730903593577,7.60556,2634.7,2634.1,3.79635]
[1730903593578,3.79556,2634.7,2634.1,3.79635]
[1730903593786,7.59116,2634.7,2634.1,3.79635]
[1730903593937,3.79556,2634.7,2634.1,7.59262]
[1730903594141,3.79527,2634.9,2634.1,3.79627]
[1730903594342,3.79527,2634.9,2634.3,3.79602]
[1730903594658,3.79499,2635.1,2634.4,3.79582]
[1730903594853,3.79499,2635.1,2634.5,3.79569]
[1730903595057,3.79507,2635.0,2634.3,7.59202]
[1730903595351,3.79545,2634.8,2634.2,0.8126]
[1730903595568,3.79559,2634.7,2634.2,0.8126]
[1730903595938,3.7957,2634.6,2633.9,4.55197]
[1730903596137,0.379545,2634.8,2634.3,3.79599]
[1730903596343,3.79555,2634.7,2634.1,7.59254]
[1730903596550,3.79555,2634.7,2634.1,3.79625]
[1730903596752,3.79567,2634.6,2633.9,4.55196]
[1730903597044,3.79543,2634.8,2634.2,3.79619]
[1730903597245,3.79511,2635.0,2634.3,3.87184646]
[1730903597570,3.79511,2635.0,2634.4,3.7959]
[1730903597967,3.79511,2635.0,2634.2,3.79613]
[1730903598168,3.79522,2634.9,2634.3,3.79606]
[1730903598475,3.79522,2634.9,2633.9,0.7554]
[1730903598476,0.01,2635.4,2633.9,0.7554]
[1730903598790,3.79601,2634.4,2633.8,3.79669]
[1730903598945,3.79601,2634.4,2633.9,0.87572661]
[1730903599142,3.7958,2634.5,2633.9,4.67227661]
[1730903599343,3.79521,2634.9,2633.9,0.87572661]
[1730903599600,3.79593,2634.4,2633.9,0.7998]
[1730903599841,3.79549,2634.7,2633.9,0.7998]
[1730903600044,0.379521,2634.8,2633.6,0.7559]
[1730903600205,3.79573,2634.6,2633.7,0.07592658]
[1730903600403,0.55,2635.1,2633.7,0.07592658]
[1730903600404,3.79526,2634.9,2634.3,0.7736]
[1730903600645,3.79526,2634.9,2634.3,4.56954]
[1730903600646,4.229786,2634.9,2634.3,4.56954]
[1730903600799,3.79569,2634.6,2634.3,0.7736]
[1730903601640,3.79579,2634.5,2634.3,0.7736]
[1730903601841,3.79595,2634.4,2634.0,0.773]
[1730903602201,3.79659,2634.0,2633.5,0.773]
[1730903602430,7.59319,2634.0,2633.5,0.773]
[1730903602630,3.0,2635.0,2633.6,3.79707]
[1730903602835,3.79644,2634.1,2633.6,3.79707]
[1730903603001,3.79611,2634.3,2633.7,3.79685]
[1730903603202,3.56,2635.1,2633.6,3.79707]
[1730903603403,3.79593,2634.4,2633.9,3.79664]
[1730903603601,3.55,2635.1,2634.3,3.79606]
[1730903603602,3.79536,2634.8,2634.3,3.79606]
[1730903603799,3.79528,2634.9,2634.3,3.79606]
[1730903603800,3.79494,2635.1,2634.5,3.79576]
[1730903604004,3.79509,2635.0,2634.5,3.79576]
[1730903604244,3.79565,2634.6,2634.1,3.79628]
[1730903604750,7.59034,2635.0,2634.3,3.79593]
[1730903605050,3.79524,2634.9,2634.3,3.79593]
[1730903605547,3.79524,2634.9,2634.1,0.9115919]
[1730903605548,3.79463,2635.3,2634.2,3.79621]
[1730903605722,3.79463,2635.3,2634.3,3.79606]
[1730903605723,3.79538,2634.8,2634.3,3.79606]
[1730903605906,3.79526,2634.9,2634.4,3.79587]
[1730903606102,7.59055,2634.9,2634.3,3.79606]
[1730903606306,3.79536,2634.8,2634.3,4.555294]
[1730903606508,7.59056,2634.9,2634.3,4.555294]
[1730903606730,3.7954,2634.8,2634.3,4.555294]
[1730903606956,3.79502,2635.1,2634.3,3.79598]
[1730903607128,3.79516,2635.0,2634.4,3.8717616]
[1730903607522,3.79516,2635.0,2634.5,3.79577]
[1730903607723,3.79522,2634.9,2634.4,0.0759116]
[1730903607924,3.79538,2634.8,2634.4,0.0759116]
[1730903608247,3.79522,2634.9,2634.4,3.8718316]
[1730903608432,3.79457,2635.4,2634.8,3.79521]
[1730903608616,3.79467,2635.3,2634.8,3.79521]
[1730903608806,3.79441,2635.5,2634.9,3.7952]
[1730903609007,0.52413929,2635.7,2635.3,3.79456]
[1730903609206,0.52413929,2635.7,2635.1,3.79482]
[1730903609477,3.9215586,2635.7,2635.2,3.79477]
[1730903609634,3.79427,2635.6,2635.1,3.79482]
[1730903609840,3.9215586,2635.7,2635.2,3.79474]
[1730903610008,3.9215586,2635.7,2635.1,3.79482]
[1730903610208,3.9216286,2635.7,2635.1,0.459462]
[1730903610411,0.1274886,2635.7,2635.2,3.79477]
[1730903610631,0.1274886,2635.7,2634.9,0.7998]
[1730903610830,0.1274886,2635.7,2635.4,3.79438]
[1730903611008,0.1274886,2635.7,2635.5,4.932278]
[1730903611364,0.1274886,2635.7,2635.6,3.87007996]
[1730903611648,0.1274886,2635.7,2635.6,4.62867996]
[1730903614236,4.79669621,2637.2,2635.6,4.62867996]
[1730903614237,3.7922,2637.0,2636.4,3.793]
[1730903614438,3.79171,2637.4,2635.8,3.79381]
[1730903614439,3.79161,2637.4,2636.5,0.3793]
[1730903614671,3.79251,2636.8,2636.3,0.7875]
[1730903615245,3.79226,2637.0,2636.4,3.79293]
[1730903615445,3.79226,2637.0,2636.4,3.79302]
[1730903615858,3.79241,2636.9,2636.4,3.79302]
[1730903616184,0.1274,2637.5,2636.3,0.7875]
[1730903616495,3.79286,2636.6,2636.0,4.62264]
[1730903616643,3.79255,2636.8,2636.0,4.69850469]
[1730903616993,3.79279,2636.6,2636.1,3.79346]
[1730903617145,3.79279,2636.6,2636.0,0.8291]
[1730903617339,3.79279,2636.6,2636.0,0.90496468]
[1730903617643,3.79262,2636.7,2636.0,0.90496468]
[1730903617867,7.71169,2637.1,2636.4,3.79297]
[1730903618069,3.79212,2637.1,2636.6,0.8086]
[1730903618315,3.79182,2637.3,2636.7,3.79253]
[1730903618485,0.1274,2637.4,2636.7,3.79251]
[1730903618649,3.79118,2637.7,2636.9,3.79219]
[1730903618848,3.79112,2637.8,2637.2,3.79181]
[1730903619075,3.91838,2637.9,2637.3,0.07582986]
[1730903619252,3.79119,2637.7,2637.2,4.60271]
[1730903619595,3.79117,2637.8,2637.3,0.07582786]
[1730903619781,3.79171,2637.4,2636.8,0.7678]
[1730903619984,3.79192,2637.2,2636.8,0.7678]
[1730903620182,3.79197,2637.2,2636.8,0.7678]
[1730903620780,0.55,2637.2,2636.5,0.7562]
[1730903620981,3.79271,2636.7,2636.2,4.5495]
[1730903621179,4.8199313,2637.5,2636.2,4.5495]
[1730903621180,3.79233,2636.9,2636.2,0.7562]
[1730903621524,3.79334,2636.2,2635.7,3.79403]
[1730903621795,0.55,2636.7,2635.6,4.60272]
[1730903621965,0.1274,2636.4,2635.6,4.6785759]
[1730903622207,0.6774,2636.7,2635.6,4.60273]
[1730903622402,3.79306,2636.4,2635.6,4.60276]
[1730903622600,3.79306,2636.4,2635.9,3.79375]
[1730903622906,3.79259,2636.8,2636.3,3.79318]
[1730903623105,3.79259,2636.8,2636.2,3.79332]
[1730903623429,3.79259,2636.8,2635.6,0.4982198]
[1730903623616,3.79227,2637.0,2636.5,3.79279]
[1730903623931,3.79275,2636.7,2636.1,4.60386]
[1730903624142,7.30263519,2637.3,2636.2,3.79333]
[1730903624340,5.42169621,2638.0,2636.2,3.79333]
[1730903624341,3.79156,2637.5,2636.9,7.58462]
[1730903624508,3.79163,2637.4,2636.9,3.79231]
[1730903624691,3.79156,2637.5,2636.9,3.79231]
[1730903624903,3.79156,2637.5,2636.9,4.631767]
[1730903625197,3.79227,2637.0,2636.3,3.7931]
[1730903625435,0.01,2637.4,2636.9,3.79219]
[1730903625732,3.80169,2637.4,2636.8,3.79245]
[1730903625950,3.81169,2637.4,2636.8,3.79245]
[1730903626106,3.79187,2637.3,2636.7,3.79259]
[1730903626309,3.79176,2637.3,2636.8,3.79245]
[1730903626560,4.192859,2637.4,2636.8,3.79245]
[1730903626713,3.79179,2637.3,2636.8,3.79245]
[1730903627036,4.192859,2637.4,2636.8,3.79239]
[1730903627239,7.984599,2637.4,2636.8,3.79239]
[1730903627441,4.2110859,2637.3,2636.8,3.79239]
[1730903627645,3.79197,2637.2,2636.6,3.7927]
[1730903627938,3.79231,2637.0,2636.4,3.793]
[1730903628153,3.79233,2636.9,2636.4,3.793]
[1730903628329,0.01,2636.5,2635.8,0.05690612]
[1730903628669,0.01,2636.5,2636.1,3.79339]
[1730903628670,0.7884,2636.5,2636.1,3.79339]
[1730903628883,5.8972859,2637.3,2635.8,0.05690612]
[1730903628884,0.02,2637.2,2636.2,0.07586306]
[1730903629158,0.02,2637.2,2635.1,5.28448429]
[1730903629159,0.01,2636.1,2635.6,3.79409]
[1730903629368,0.01,2636.1,2635.1,3.79479]
[1730903629369,0.01,2635.7,2635.1,3.79479]
[1730903629522,0.01,2635.7,2635.2,3.79477]
[1730903629706,0.01,2636.0,2634.6,4.79669621]
[1730903629911,0.02,2636.1,2635.3,3.79463]
[1730903630225,0.02,2636.1,2635.3,3.79453]
[1730903630557,3.8135,2636.1,2635.3,3.79453]
[1730903630726,0.01,2636.1,2635.5,3.79422]
[1730903630923,0.02,2636.1,2635.5,3.79422]
[1730903631127,0.770666,2636.1,2635.5,3.79422]
[1730903631326,0.760666,2636.1,2635.5,3.79422]
[1730903631641,0.02,2636.3,2635.8,3.7939]
[1730903631816,0.02,2636.3,2635.7,0.7755]
[1730903632013,0.01,2636.3,2635.9,3.79371]
[1730903632239,0.01,2636.3,2635.7,4.56946]
[1730903633053,0.01,2636.2,2635.7,0.7755]
[1730903633255,0.01,2636.3,2635.7,0.7755]
[1730903633474,0.01,2636.4,2635.8,3.79381]
[1730903633609,0.01,2636.4,2635.8,3.7939]
[1730903633815,0.01,2636.2,2635.7,0.7755]
[1730903634038,3.81335,2636.2,2635.4,0.8118]
[1730903634260,0.01,2636.0,2635.4,4.60625]
[1730903634461,0.01,2636.0,2635.4,0.8118]
[1730903634771,0.847194,2636.0,2635.4,4.60626]
[1730903635066,0.847194,2636.0,2635.4,4.68214008]
[1730903635264,0.847194,2636.0,2635.4,0.88768008]
[1730903635558,0.7751,2636.2,2635.6,3.79409]
[1730903635862,4.56847,2636.2,2635.5,3.79431]
[1730903636360,4.56847,2636.2,2635.6,3.79418]
[1730903636565,0.01,2635.7,2635.2,3.79469]
[1730903636856,3.80416,2635.7,2635.0,8.41217]